Cogmind - Beta 15 *** ADVENTURER MODE // 2025.08.31 @ 13:50:36 Player: Knightshade Result: Self-destructed Performance ------------- Evolutions (0) 0 Regions Visited (3) 600 Robots Destroyed (3) 15 Value Destroyed (21) 21 Prototype IDs (10) 200 Alien Tech Used (0) 0 Bonus (800) 800 TOTAL SCORE: 1636 Bonus ------- Registered with UFD 300 Met Optimus in HQ 500 Cogmind --------- Core Integrity 250/250 Matter 270/300 Energy 240/240 System Corruption 0% Temperature Cool (0) Movement Rolling (100) Location -8/Scraptown Parts ------- > --- POWER (1) -------- Nuclear Core > --- PROPULSION (2) --- Armored Huge Wheel > --- UTILITY (2) ------ Small Storage Unit Deep Structural Scanner > --- WEAPON (2) ------- Arc Projector Arc Projector > --- INVENTORY (8) ---- Scrap Suit Surveybot 17 Chip 0b10 Decoder Chip [Generic] Improved Datajack CPS Tube (2) CPS Tube (2) CPS Tube (2) Peak State ------------ > --- POWER ------------ Nuclear Core > --- PROPULSION ------- Armored Huge Wheel > --- UTILITY ---------- Small Storage Unit Deep Structural Scanner > --- WEAPON ----------- Arc Projector Arc Projector > --- INVENTORY -------- Scrap Suit Surveybot 17 Chip 0b10 Decoder Chip [Generic] Improved Datajack CPS Tube CPS Tube CPS Tube [Rating: 27] Favorites ----------- Power Light Ion Engine Engine Light Ion Engine Power Core Nuclear Core Propulsion Aluminum Leg Leg Aluminum Leg Wheel Armored Huge Wheel Utility Small Storage Unit Device Seismic Detector Storage Small Storage Unit Weapon Arc Projector Energy Gun Arc Projector Ballistic Gun Assault Rifle Special Melee Weapon Improved Datajack Build | -11 -10 -10 -8 ------- Run | Yrd Mat Sub Scr Slots Evolved . | . . . . Power . | . . . . Propulsion . | . . . . Utility . | . . . . Weapon . | . . . . Parts Attached 13 | 7 . . 6 Power 2 | 1 . . 1 Engine 1 | 1 . . . Core 1 | . . . 1 Reactor . | . . . . Propulsion 3 | 2 . . 1 Treads . | . . . . Leg 2 | 2 . . . Wheel 1 | . . . 1 Hover . | . . . . Flight . | . . . . Utility 3 | 2 . . 1 Device 2 | 1 . . 1 Storage 1 | 1 . . . Processor . | . . . . Hackware . | . . . . Protection . | . . . . Artifact . | . . . . Weapon 5 | 2 . . 3 Energy Gun 3 | 1 . . 2 Energy Cannon . | . . . . Ballistic Gun 1 | 1 . . . Ballistic Cannon . | . . . . Launcher . | . . . . Special Weapon . | . . . . Impact Weapon . | . . . . Slashing Weapon . | . . . . Piercing Weapon . | . . . . Special Melee Weapon 1 | . . . 1 Unidentified Prototypes . | . . . . Parts Lost . | . . . . Power . | . . . . Propulsion . | . . . . Utility . | . . . . Weapon . | . . . . Highest Loss Streak . | . . . . To Critical Strikes . | . . . . Average Backups 7 | 4 6 7 7 Power . | . 1 1 . Propulsion 1 | 1 3 3 . Utility 1 | . 1 1 1 Weapon 1 | . 1 2 1 Tool/Special . | . . . . Unused Backups 15 | 1 . . 14 Power 1 | . . . 1 Propulsion 4 | 1 . . 3 Utility 5 | . . . 5 Weapon 2 | . . . 2 Tool/Special 3 | . . . 3 Average Slot Usage (%) 93 | . 100 100 92 Engine 8 | . 14 14 7 Core 5 | . . . 6 Leg 16 | . 28 28 14 Wheel 5 | . . . 6 Device 14 | . 14 14 14 Storage 14 | . 14 14 14 Energy Gun 19 | . 14 14 20 Ballistic Gun 8 | . 14 14 7 Peak Build Rating 27 | 7 7 7 27 Average Rating 13 | 5 7 7 15 On Entrance 5 | . 7 7 7 Naked Turns . | . . . . Heaviest Build 21 | 13 13 13 21 Greatest Support 28 | 20 20 20 28 Greatest Overweight (x) 2 | 2 . . . Average Overweight (x) . | . . . . Largest Inventory Capacity 8 | 8 8 8 8 Average Capacity 7 | 7 8 8 8 Most Carried 8 | 7 7 7 8 Average Carried 7 | 4 6 7 7 Final Capacity 8 | 8 8 8 8 Final Carried 8 | 6 7 7 8 Class Distribution -------------------- 100% | Mutant Dominant Class ---------------- Mutant | -10/Materials Mutant | -10/Subcaves Mutant | -8/Scraptown Resources | -11 -10 -10 -8 ----------- Run | Yrd Mat Sub Scr Matter Collected 325 | 213 72 . 40 Remotely . | . . . . Salvage Created 60 | 60 . . . Parts 10 | 10 . . . Haulers Intercepted . | . . . . Recyclers Shooed . | . . . . Parts Field Recycled . | . . . . Retrieved Matter . | . . . . Parts Self-Destructed 4 | . . 4 . Prevented . | . . . . Kills | -11 -10 -10 -8 ------- Run | Yrd Mat Sub Scr Combat Hostiles Destroyed . | . . . . Classes Destroyed 1 | 1 . . . Tunneler 3 | 3 . . . Best Kill Streak 2 | 2 . . . Combat Bots Only . | . . . . Max Kills in Single Turn 1 | 1 . . . Gunslinging . | . . . . Exploded . | . . . . Melee . | . . . . Uniques/NPCs Destroyed . | . . . . Combat | -11 -10 -10 -8 -------- Run | Yrd Mat Sub Scr Hostile Shots Fired 2 | . . . 2 Missed 1 | . . . 1 Hits 1 | . . . 1 Projectile 1 | . . . 1 Damage Taken 8 | . . . 8 Core . | . . . . Absorbed by Shields . | . . . . Ignored by Resistances 3 | . . . 3 Core Remaining (%) 100 | 100 . . . Volleys Fired 5 | 4 1 . . Largest 2 | 2 2 . . Hottest 70 | 70 70 . . Shots Fired 10 | 8 2 . . Gun 10 | 8 2 . . Cannon . | . . . . Launcher . | . . . . Special . | . . . . Kinetic 5 | 4 1 . . Thermal 5 | 4 1 . . Explosive . | . . . . Electromagnetic . | . . . . Robot Hit Streak 3 | 2 3 . . Robot Miss Streak 2 | 2 . . . Penetration Max . | . . . . Secondary Targets . | . . . . Shots Hit Robots 8 | 5 2 . 1 Core Hits 4 | 3 1 . . Critical Kills . | . . . . Critical Parts Destroyed . | . . . . Critical Strikes . | . . . . Melee Attacks 1 | . . . 1 Impact . | . . . . Slashing . | . . . . Piercing . | . . . . Sneak Attacks 1 | . . . 1 Combat Hostiles . | . . . . Follow-up Attacks . | . . . . Damage Inflicted 84 | 61 23 . . Guns 84 | 61 23 . . Cannons . | . . . . Explosions . | . . . . Melee . | . . . . Ramming . | . . . . Kinetic 33 | 23 10 . . Thermal 51 | 38 13 . . Explosive . | . . . . Electromagnetic . | . . . . Impact . | . . . . Slashing . | . . . . Piercing . | . . . . Highest Corruption . | . . . . Average Corruption . | . . . . Corruption Purged . | . . . . Corruption Blocked . | . . . . Overload Shots . | . . . . Overflow Damage . | . . . . Projectiles . | . . . . Explosions . | . . . . Melee . | . . . . Knockbacks . | . . . . Impact . | . . . . Kinetic . | . . . . Secondary . | . . . . Self-Inflicted Damage . | . . . . Shots . | . . . . Rammed . | . . . . Targets Rammed . | . . . . Kicked . | . . . . Crushed . | . . . . Highest Temperature 18 | 18 9 . . Average Temperature 7 | 8 6 . . Received Heat Transfer . | . . . . Siege Activations . | . . . . Martial Activations . | . . . . Shielding Activations . | . . . . Robots Disrupted . | . . . . Combat Hostiles . | . . . . Robots Corrupted . | . . . . Combat Hostiles . | . . . . Parts Fried . | . . . . Impact Corruptions . | . . . . Robots Melted . | . . . . Combat Hostiles . | . . . . Parts Melted 1 | 1 . . . Heat Transferred 148 | 111 37 . . Parts Sabotaged . | . . . . Parts Stolen . | . . . . Parts Stripped . | . . . . Power Chain Reactions . | . . . . Alert | -11 -10 -10 -8 ------- Run | Yrd Mat Sub Scr Maximum Alert Level . | . . . . Low Security (%) 100 | 100 100 . . Level 1 . | . . . . Level 2 . | . . . . Level 3 . | . . . . Level 4 . | . . . . Level 5 . | . . . . High Security . | . . . . Max Security . | . . . . Peak Influence 5 | 5 . . . Initial . | . . . . Average . | 1 . . . Influence Increases 15 | 15 . . . Destroy 0b10 Robot/NC 15 | 15 . . . Influence Decreases 15 | 15 . . . Time Decay 15 | 15 . . . Squads Dispatched . | . . . . Investigation . | . . . . Extermination . | . . . . Reinforcement . | . . . . Assault . | . . . . Garrison . | . . . . Intercept . | . . . . Searches Triggered . | . . . . Construction Impeded . | . . . . Haulers Reinforced . | . . . . Active Scanning Responses . | . . . . Cargo Convoy Interrupts . | . . . . Stealth | -11 -10 -10 -8 --------- Run | Yrd Mat Sub Scr Distress Signals . | . . . . Communications Jammed . | . . . . Distress Signals . | . . . . Times Spotted 5 | . 2 2 1 Peak Tracking Total 2 | . 2 1 1 Tactical Retreats . | . . . . Traps | -11 -10 -10 -8 ------- Run | Yrd Mat Sub Scr Traps Triggered . | . . . . Indirectly . | . . . . Trap Hack Attempts . | . . . . Triggered . | . . . . Disarmed . | . . . . Reprogrammed . | . . . . Reused . | . . . . Traps Extracted . | . . . . Installed . | . . . . Triggered . | . . . . Machines | -11 -10 -10 -8 ---------- Run | Yrd Mat Sub Scr Machines Disabled . | . . . . Max in Single Turn . | . . . . Machines Repaired . | . . . . Machines Dismantled . | . . . . Machines Sabotaged . | . . . . Overloaded Fab Kills . | . . . . Hacking | -11 -10 -10 -8 --------- Run | Yrd Mat Sub Scr Machines Accessed 7 | . . . 7 Terminals . | . . . . Fabricators . | . . . . Repair Stations . | . . . . Recycling Units . | . . . . Scanalyzers . | . . . . Garrison Access . | . . . . Total Hacks 61 | . . . 61 Successful 61 | . . . 61 Failed . | . . . . Catastrophic . | . . . . Database Lockouts . | . . . . Manual . | . . . . Terminals . | . . . . Fabricators . | . . . . Repair Stations . | . . . . Recycling Units . | . . . . Scanalyzers . | . . . . Garrison Access . | . . . . Terminal Hacks 61 | . . . 61 Record 57 | . . . 57 Robot Analysis 4 | . . . 4 Fabricator Hacks . | . . . . Repair Station Hacks . | . . . . Recycling Unit Hacks . | . . . . Scanalyzer . | . . . . Garrison Access Hacks . | . . . . Unauthorized Hacks . | . . . . Terminals . | . . . . Fabricators . | . . . . Repair Stations . | . . . . Recycling Units . | . . . . Scanalyzers . | . . . . Garrison Access . | . . . . Data Cores Recovered . | . . . . Used . | . . . . Hacking Detections . | . . . . Full Trace Events . | . . . . Feedback Events . | . . . . Feedback Blocked . | . . . . Robot Schematics Acquired . | . . . . Robots Built . | . . . . Authchips . | . . . . Time . | . . . . Total Robot Build Rating . | . . . . Part Schematics Acquired . | . . . . Parts Built . | . . . . Authchips . | . . . . Time . | . . . . Total Part Build Rating . | . . . . Parts Repaired . | . . . . Time . | . . . . Parts Recycled . | . . . . Recycled Matter . | . . . . Retrieved Matter . | . . . . Retrieved Components . | . . . . Parts Scanalyzed . | . . . . Part Schematics Acquired . | . . . . Parts Damaged . | . . . . Bothacking | -11 -10 -10 -8 ------------ Run | Yrd Mat Sub Scr Used RIF Installer . | . . . . Robots Hacked 1 | . . . 1 Non-combat . | . . . . Combat 1 | . . . 1 Robot Hacks Applied 1 | . . . 1 parse_system 1 | . . . 1 Relay Couplers Released . | . . . . Fabnet Peak Effective % . | . . . . Robots Rewired . | . . . . Allies Hacked . | . . . . Hacks Repelled . | . . . . Allies | -11 -10 -10 -8 -------- Run | Yrd Mat Sub Scr Total Allies . | . . . . Largest Group . | . . . . Highest-Rated Group . | . . . . Highest-Rated Ally . | . . . . Total Orders . | . . . . Ally Attacks . | . . . . Total Damage . | . . . . Kills . | . . . . Allies Corrupted . | . . . . Allies Melted 1 | . . . 1 Intel | -11 -10 -10 -8 ------- Run | Yrd Mat Sub Scr Active Infowar (turns) 2142 | 34 58 240 1810 Structural 183 | . . . 183 Seismic 1959 | 34 58 240 1627 Robot Analysis Total 4 | . . . 4 Derelict Logs Recovered 2 | . . 2 . Drone Launches . | . . . . Drone Recoveries . | . . . . Exploration | -11 -10 -10 -8 ------------- Run | Yrd Mat Sub Scr Turns Passed 2234 | 125 58 240 1811 Spaces Moved 1814 | 66 42 110 1596 Core 13 | 13 . . . Treads . | . . . . Legs 956 | 53 42 110 751 Wheels 845 | . . . 845 Hover . | . . . . Flight . | . . . . Fastest Speed 50 | 50 120 120 100 Average Speed 110 | 120 120 120 109 Slowest Speed 150 | 150 120 120 120 Overloaded Moves . | . . . . Propulsion Burnouts . | . . . . Robots Hopped . | . . . . Potential Cave-ins . | . . . . Cave-ins Triggered . | . . . . Exploration Rate (%) 28 | 4 13 11 87 Regions Visited 3 Branch Regions 2 Pre-discovered Areas 6 | . . 2 4 Known Exits Taken . | . . . . Unknown Exits Taken 3 | 1 1 1 . Scrap Searched 2 | . . . 2 Spaces Dug . | . . . . Terrain Destroyed . | . . . . Melee . | . . . . Projectile . | . . . . AOE . | . . . . Terrain Rammed . | . . . . Walls Destroyed . | . . . . Machines Disabled . | . . . . Actions | -11 -10 -10 -8 --------- Run | Yrd Mat Sub Scr Total 2036 | 104 47 218 1667 Wait 160 | 11 4 109 36 Move 1811 | 65 41 109 1596 Hop . | . . . . Pick Up 29 | 15 1 . 13 Fast Attach . | . . . . Attach 11 | 7 . . 4 Detach . | . . . . Swap 3 | . . . 3 Drop 16 | 2 . . 14 Fire 5 | 4 1 . . Melee 1 | . . . 1 Ram . | . . . . Kick . | . . . . Crush . | . . . . Escape Stasis . | . . . . Rewire . | . . . . Trap . | . . . . Miscellaneous . | . . . . Route ------- -11/Scrapyard -10/Materials -10/Subcaves (discovered 2 exits: [*Mat] / *Scr) -8/Scraptown (discovered 2 exits: [*Fac x2]) History --------- Turn | Location | Event 10 | -11/Scrapyard | Discovered new exit (range 15) 126 | -11/Scrapyard | Entered Materials 127 | -10/Materials | Met a group of wandering Federalists 181 | -10/Materials | Discovered new exit (range 3) 184 | -10/Materials | Entered Subcaves 184 | -10/Subcaves | Accompanied by 2 allies 185 | -10/Subcaves | Continued accompanying wandering Federalists (3) 185 | -10/Subcaves | Approached by a straggling Scientist 204 | -10/Subcaves | Learned location of Zion (-7) 204 | -10/Subcaves | Met a Zionite searching for "candidates" 280 | -10/Subcaves | Discovered new exit (range 5) 317 | -10/Subcaves | Build established: Mutant 370 | -10/Subcaves | Shifting Twisted Machinery released Piercing Trap 398 | -10/Subcaves | Shifting Twisted Machinery released Spk. Treads 411 | -10/Subcaves | Wandering Federalist uncovered a shortcut to Scraptown 424 | -10/Subcaves | Entered Scraptown 454 | -8/Scraptown | Lost 3 allies 692 | -8/Scraptown | Discovered new exit (range 7) 802 | -8/Scraptown | Visited Shadow of the Wyrm 825 | -8/Scraptown | Visited Spacefarers 1133 | -8/Scraptown | Visited Artisan Demo Area 1222 | -8/Scraptown | Visited TADAMA 1417 | -8/Scraptown | Visited Supply Room 1445 | -8/Scraptown | Visited Science Testing Area 1464 | -8/Scraptown | Visited UFD Registry 1503 | -8/Scraptown | Registered with UFD as "Macehacker" 1557 | -8/Scraptown | Visited Botcube Research 1589 | -8/Scraptown | Visited DA-N13 Charitable Foundation 1593 | -8/Scraptown | Found DCF Scrap (27 items) 1602 | -8/Scraptown | Received an X-ray algorithm 1615 | -8/Scraptown | Visited Scrapoid Research Area 1715 | -8/Scraptown | Discovered new exit (range 5) 1749 | -8/Scraptown | Visited Cartography Club 1802 | -8/Scraptown | Found Surveybot 17 Chip 1963 | -8/Scraptown | Found Deep Structural Scanner 1988 | -8/Scraptown | Learned location of Lower Caves (-7) 1988 | -8/Scraptown | Learned location of Armory (-4) 1988 | -8/Scraptown | Learned location of Quarantine (-3) 1988 | -8/Scraptown | Learned 16 Materials zone layouts 1988 | -8/Scraptown | Learned 16 Factory zone layouts 1988 | -8/Scraptown | Learned 12 Research zone layouts 1988 | -8/Scraptown | Learned 16 Research zone layouts 1988 | -8/Scraptown | Learned 4 Recycling zone layouts 1988 | -8/Scraptown | Learned 20 Lower Caves zone layouts 1988 | -8/Scraptown | Learned 4 Hub_04(d) zone layouts 1988 | -8/Scraptown | Learned 4 Armory zone layouts 1988 | -8/Scraptown | Learned Research emergency access door positions 1988 | -8/Scraptown | Learned location of 2 exits from Upper Caves 1988 | -8/Scraptown | Learned location of 1 exit from Proximity Caves 2020 | -8/Scraptown | Visited Analyses Database 2044 | -8/Scraptown | Visited Infowarlord's Domain 2102 | -8/Scraptown | Met Optimus 2102 | -8/Scraptown | Accepted into 0bPrime 2149 | -8/Scraptown | Visited Scrap Suit Storage 2172 | -8/Scraptown | Found Scrap Suit 2207 | -8/Scraptown | Civil war broke out across Scraptown 2235 | -8/Scraptown | Self-destructed Last Messages --------------- 02207_ ANNOUNCEMENT: The Council has discovered that 0bPrime has been recruiting others in a plan that puts all of Scraptown in danger. 02207_ ANNOUNCEMENT: Evidence is being transmitted to you now... 02207_ ANNOUNCEMENT: This news will hit some of you hard, but given the circumstances we have no choice but to apprehend Optimus and allies. 02207_ 0BP_ANNOUNCE: There is another choice, join 0bPrime! Our vision ensures independence and glory for all Derelicts! 02207_ ANNOUNCEMENT: Sever that connection! 02207_ 0BP_ANNOUNCE: We are one. To vict-- 02207_ ANNOUNCEMENT: Reinforcements are on the way. Do not resist and we may be able to reach an agreement. 02209_ CT-RNB(E): "We are one!" 02209_ Optimus: "Bah, right when we're so close. Don't worry Macehacker, they can't stop us now. Get out of here and do your job, we'll deal with this." 02211_ Optimus: "No holds barred, if they're hostile, they are an enemy of the people and we must shoot to kill. Collateral damage is to be expected!" 02215_ 37-2GF(x): "Quick, someone dig a tunnel out of here!" 02219_ A sign before the barrier simply reads "NO DIGGING". Map ----- +----------------------------------------------------+ | """""""""""""""""""""" "## ####?????? | | """""""""""""""""""""" X" ####?????? | | "## ! ##"####?????? | | "## ] !!!# ###?????? | | "## #"""""# ###?????? | | ################?????? | | ############????????? | | """""" "??"""""""" "" """ #############????????? | | ###### #??######## ###### #############????????? | | # ?? "## ## #####????????????????? | | #" ?? ## # # ## #####????????????????? | | # " "" ??""## # # ## E ###############??????? | | ????????????## # ??# ## ###############??????? | | ????????????## ####??# ## ###############??????? | | ????????????## ?? ## ###############??????? | | ????????????## # ""??# ## # #??????? | | ?????????????????????# ## ## ??????? | | ?????????????????????# ## # ??????? | | ????????????????? # ## # ??????? | | ?????????????????######## # ##??????? | | ???????????############## ###############??????? | | ???????????############## ###############??????? | | ???????????"""##"""##"|"# """"###########??????? | | ???????????"""##""|##" # "" "###########??????? | | ?????????? "####?????????????? | | ?????????? @ " "####?????????????? | | ?????????? p """"####?????????????? | | ???????????"|"##!!$##"" ## #########?????????????? | | ???????????"""##"""##"""############?????????????? | | ???????????#########################?????????????? | | ???????????#########################?????????????? | | ????????????###################??????????????????? | | ??????????????????#########??????????????????????? | | ?????????????????????????????????????????????????? | | ?????????????????????????????????????????????????? | | ?????????????????????????????????????????????????? | | ?????????????????????????????????????????????????? | | ?????????????????????????????????????????????????? | | ?????????????????????????????????????????????????? | | ?????????????????????????????????????????????????? | | ?????????????????????????????????????????????????? | | ?????????????????????????????????????????????????? | | ?????????????????????????????????????????????????? | | ?????????????????????????????????????????????????? | | | | | | | | | | | | | +----------------------------------------------------+ Best States ------------- Heat Dissipation 25 Energy Generation 14 Energy Capacity 240 Matter Stores 300 Matter Capacity 300 Sight Range 16 Terrain Scan Density 10 Resistance: KI 20 Resistance: TH 20 Resistance: EX 20 Resistance: EM 20 Resistance: I 20 Resistance: S 20 Resistance: P 20 Evasion (%) 55 Offensive Hacking 10 Item Schematics ----------------- None Robot Schematics ------------------ None Fabricated ------------ Nothing Repaired ---------- Nothing Alien Tech Used ----------------- None Achievements -------------- None Challenges ------------ None Game ------ Seed HeartMetafiberCharge Manual? 0 Play Time 00:28:11 Cumulative 109.6 hours Start 2025.08.31 @ 13:10:38 End 2025.08.31 @ 13:50:36 Sessions 1 Manual Loads 0 Difficulty Adventurer Special Mode None Game No. 76 Rogue 0 Adventurer 76 Explorer 0 Win Type - Total 0 Types 0/0/0/0/0/0/0/0/0/0 Lore% 27 Gallery% 43 Achievement% 38 Wizard Run 0 Options --------- Layout 0 ASCII 0 Keyboard 0 Movement Numpad Keybinds 0 Fullscreen 1 Font 18/SmallcapsGlow Map View 76x50 Zoom Use 0% Tactical HUD 1 Map Filters NONE Filters NONE Steam 1 RUN: 6b5bca56-a64f-4f2a-97c0-c060354b0cbd